Cogmind - Beta 13 X1 @@@ ROGUE MODE // 2023.09.13 @ 11:57:18 Player: VR-DUX Result: Destroyed by G-47 Trooper with Particle Gun Performance ------------- Evolutions (2) 1000 Regions Visited (5) 1000 Robots Destroyed (107) 535 Value Destroyed (2593) 2593 Prototype IDs (7) 140 Alien Tech Used (0) 0 Bonus (199) 199 TOTAL SCORE: 5467 Bonus ------- High Alert Combat Kills 174 Follower Combat Kills 25 Cogmind --------- Core Integrity 0/550 Matter 190/300 Energy 89/140 System Corruption 4% Temperature Hot (220) Movement Rolling (175) Ox5 Location -8/Materials Parts ------- > --- POWER (1) -------- Light Deuterium Engine > --- PROPULSION (2) --- Compact Wheel > --- UTILITY (6) ------ Huge Storage Unit Structural Scanner Improved Signal Interpreter Advanced Targeting Computer Hardened Medium Armor Plating Hacking Suite > --- WEAPON (2) ------- (None) > --- INVENTORY (25) --- Light Nuclear Core Wheel VTOL Module Improved Flight Unit Cesium-ion Thruster Improved Heat Sink Medium Storage Unit Large Storage Unit High-capacity Battery (250) High-capacity Matter Pod (16) Improved Signal Interpreter Makeshift Terrain Scan Processor Advanced Targeting Computer Long-range Tractor Beam EM Pulse Cannon Heavy Ion Cannon Gauss Rifle Missile Launcher Improved Datajack Heavy Mace Katana Spear Peak State ------------ > --- POWER ------------ Light Angular Momentum Engine > --- PROPULSION ------- Armored Huge Wheel > --- UTILITY ---------- Advanced Heat Sink Huge Storage Unit Improved Sensor Array Experimental Sensor Array Improved Signal Interpreter Advanced Targeting Computer > --- WEAPON ----------- Enhanced Autogun Enhanced Autogun > --- INVENTORY -------- Light Nuclear Core Light Treads Light Treads Light Treads Carbon-fiber Leg Armored Huge Wheel Improved Heat Sink Small Storage Unit Medium Storage Unit Large Storage Unit High-capacity Matter Pod Advanced Visual Processing Unit Makeshift Terrain Scan Processor Advanced Targeting Computer Long-range Tractor Beam EM Pulse Cannon Beam Cannon Heavy Ion Cannon Gauss Rifle Improved Light Cannon Grenade Launcher Missile Launcher Heavy Mace Mining Claw [Rating: 50] Favorites ----------- Power Ion Engine Engine Ion Engine Power Core Light Nuclear Core Propulsion Light Treads Treads Light Treads Leg Aluminum Leg Wheel Armored Huge Wheel Flight Unit Improved Flight Unit Utility Huge Storage Unit Device Structural Scanner Storage Huge Storage Unit Processor Signal Interpreter Hackware Hacking Suite Protection Light Armor Plating Weapon Autogun Energy Gun Advanced Beam Rifle Energy Cannon EM Pulse Cannon Ballistic Gun Autogun Ballistic Cannon Assault Cannon Launcher Rocket Launcher Impact Weapon Heavy Hammer Slashing Weapon Mining Claw Special Melee Weapon Improved Datajack Build | -11 -10 -10 -10 -9 -8 ------- Run | Jun Mat Min Exi Min Mat Slots Evolved 4 | . . . . . 4 Power . | . . . . . . Propulsion . | . . . . . . Utility 4 | . . . . . 4 Weapon . | . . . . . . Parts Attached 159 | . 26 17 4 3 109 Power 19 | . 2 5 1 . 11 Engine 15 | . 2 4 1 . 8 Core 4 | . . 1 . . 3 Reactor . | . . . . . . Propulsion 17 | . 3 2 2 . 10 Treads 9 | . 3 2 1 . 3 Leg . | . . . . . . Wheel 7 | . . . 1 . 6 Hover . | . . . . . . Flight 1 | . . . . . 1 Utility 57 | . 8 1 . . 48 Device 29 | . 2 . . . 27 Storage 7 | . 5 . . . 2 Processor 7 | . . 1 . . 6 Hackware 3 | . 1 . . . 2 Protection 11 | . . . . . 11 Artifact . | . . . . . . Weapon 66 | . 13 9 1 3 40 Energy Gun 4 | . . . . 1 3 Energy Cannon 1 | . . . . . 1 Ballistic Gun 31 | . 9 3 . 2 17 Ballistic Cannon 5 | . 1 1 . . 3 Launcher 8 | . . 2 1 . 5 Special Weapon . | . . . . . . Impact Weapon 3 | . . . . . 3 Slashing Weapon 11 | . 3 3 . . 5 Piercing Weapon . | . . . . . . Special Melee Weapon 3 | . . . . . 3 Unidentified Prototypes 7 | . . . . . 7 Corrupted Parts 1 | . . 1 . . . System Corruption 3 | . . 3 . . . Parts Lost 23 | . . 4 . . 19 Power 4 | . . 1 . . 3 Propulsion 2 | . . 1 . . 1 Utility 10 | . . . . . 10 Weapon 7 | . . 2 . . 5 Highest Loss Streak 3 | . . 2 . . 3 To Critical Strikes . | . . . . . . Average Slot Usage (%) 92 | . 98 99 85 89 88 Engine 11 | . 14 11 14 14 6 Core 1 | . . 2 . . 2 Treads 19 | . 25 27 25 14 . Wheel 3 | . . . 2 14 9 Device 9 | . 11 10 . . 18 Storage 12 | . 14 14 14 14 9 Processor 8 | . . 3 14 14 15 Protection 1 | . . . . . 5 Ballistic Gun 12 | . 24 16 . 5 11 Slashing Weapon 7 | . 2 8 14 11 1 Naked Turns . | . . . . . . Heaviest Build 107 | 12 92 94 87 90 107 Greatest Support 40 | 20 40 40 40 16 28 Greatest Overweight (x) 32 | . 2 2 5 5 32 Average Overweight (x) 2 | . . 2 2 5 3 Largest Inventory Capacity 25 | 8 25 25 25 25 25 Average Capacity 23 | 8 16 25 25 25 25 Most Carried 25 | 6 22 25 25 25 25 Average Carried 22 | 4 13 24 24 24 24 Final Capacity 25 | 8 25 25 25 25 25 Final Carried 25 | 6 22 24 25 25 22 Class Distribution -------------------- 81% | Mutant 11% | Scavenger-Mutant 5% | Scavenger-Skirmisher Dominant Class ---------------- Mutant | -10/Materials Mutant | -10/Mines Mutant | -10/Exiles Mutant | -9/Mines Scavenger-Mutant | -8/Materials Resources | -11 -10 -10 -10 -9 -8 ----------- Run | Jun Mat Min Exi Min Mat Matter Collected 4847 | 209 774 865 234 225 2540 Remotely 19 | . . . . . 19 Salvage Created 4075 | 99 689 657 188 334 2108 Parts 208 | 3 53 28 7 10 107 Haulers Intercepted 5 | . 2 . . . 3 Recyclers Shooed 9 | 1 1 2 . . 5 Parts Field Recycled . | . . . . . . Retrieved Matter . | . . . . . . Parts Self-Destructed . | . . . . . . Prevented . | . . . . . . Kills | -11 -10 -10 -10 -9 -8 ------- Run | Jun Mat Min Exi Min Mat Combat Hostiles Destroyed 56 | . 10 4 . 2 40 Guns 33 | . 10 4 . 2 17 Cannons 5 | . . . . . 5 AOE 18 | . . . . . 18 Classes Destroyed 12 | 1 9 . . . 2 Worker 10 | . 3 5 . . 2 Builder 11 | . 1 2 . 1 7 Tunneler 1 | . 1 . . . . Hauler 5 | . 2 . . . 3 Recycler 16 | 1 1 5 . 3 6 Mechanic 1 | . 1 . . . . Operator 3 | . 1 . . . 2 Watcher 8 | . 3 . . . 5 Swarmer 7 | . 3 . . . 4 Grunt 39 | . 7 4 . 2 26 Duelist 2 | . . . . . 2 Sentry 8 | . . . . . 8 Best Kill Streak 7 | 1 3 3 . 4 7 Combat Bots Only 6 | . 3 1 . 2 6 Max Kills in Single Turn 4 | 1 2 2 . 1 4 Gunslinging . | . . . . . . Exploded 3 | . . . . . 3 Melee . | . . . . . . Uniques/NPCs Destroyed . | . . . . . . Combat | -11 -10 -10 -10 -9 -8 -------- Run | Jun Mat Min Exi Min Mat Damage Taken 4828 | . 347 805 . 55 3621 Core 740 | . 47 126 . 11 556 Absorbed by Shields 20 | . . . . . 20 Core Remaining (%) 63 | 100 . . . 26 . Volleys Fired 353 | 3 73 62 3 10 202 Largest 2 | 1 2 2 1 2 2 Hottest 86 | 20 46 56 33 45 86 Shots Fired 587 | 3 129 93 3 17 342 Gun 504 | 3 129 90 . 17 265 Cannon 57 | . . . . . 57 Launcher 26 | . . 3 3 . 20 Special . | . . . . . . Kinetic 538 | 3 129 90 . 15 301 Thermal 16 | . . . . . 16 Explosive 26 | . . 3 3 . 20 Electromagnetic 7 | . . . . 2 5 Robot Hit Streak 16 | 3 16 10 . 10 15 Robot Miss Streak 7 | . 3 3 . 4 7 Penetration Max . | . . . . . . Secondary Targets 3 | . 2 1 . . . Max Gunslinging Chain 1 | . 1 1 . . . Shots Hit Robots 409 | 3 80 59 10 14 243 Core Hits 190 | 2 32 23 7 9 117 Critical Kills 2 | . . 1 . . 1 Critical Parts Destroyed 1 | . . . . . 1 Critical Strikes 5 | . . 1 . . 4 Burn 1 | . . . . . 1 Destroy 3 | . . 1 . . 2 Blast 1 | . . . . . 1 Melee Attacks 60 | . 5 11 17 2 25 Impact 5 | . . . . . 5 Slashing 53 | . 5 11 17 2 18 Piercing . | . . . . . . Sneak Attacks 10 | . 1 1 . 2 6 Combat Hostiles . | . . . . . . Follow-up Attacks . | . . . . . . Damage Inflicted 9890 | 35 1089 993 596 250 6927 Guns 5017 | 35 1039 844 . 158 2941 Cannons 905 | . . . . . 905 Explosions 2822 | . . 105 154 . 2563 Melee 997 | . 50 44 442 92 369 Ramming 149 | . . . . . 149 Kinetic 5602 | 35 1039 844 . 158 3526 Thermal 820 | . . . . . 820 Explosive 2242 | . . 105 154 . 1983 Electromagnetic 80 | . . . . . 80 Impact 144 | . . . . . 144 Slashing 853 | . 50 44 442 92 225 Piercing . | . . . . . . Highest Corruption 11 | . 3 11 11 11 4 Average Corruption 7 | . 2 6 11 11 3 Corruption Purged . | . . . . . . Corruption Blocked . | . . . . . . Effects 308 | . 28 112 114 31 23 Message Errors 75 | . 5 31 26 6 7 Matter Fused 60 | . 5 20 25 7 3 Heat Flow Errors 29 | . . 15 11 3 . Energy Discharges 44 | . 5 17 14 4 4 Parts Rejected 1 | . . . . . 1 Parts Fused 1 | . . . 1 . . Data Loss (minor) 51 | . 3 14 21 8 5 Data Loss (major) 17 | . 3 5 9 . . Misfires 14 | . 6 6 . 1 1 Alerts 10 | . 1 2 7 . . Weapon Failures 6 | . . 2 . 2 2 Overload Shots . | . . . . . . Overflow Damage 493 | . . . 30 . 463 Projectiles 12 | . . . . . 12 Explosions 291 | . . . . . 291 Melee 190 | . . . 30 . 160 Knockbacks 9 | . . . . . 9 Impact 2 | . . . . . 2 Kinetic 7 | . . . . . 7 Secondary . | . . . . . . Self-Inflicted Damage 437 | . . 87 . . 350 Shots 8 | . . 2 . . 6 Rammed . | . . . . . . Targets Rammed . | . . . . . . Kicked . | . . . . . . Crushed . | . . . . . . Highest Temperature 462 | . 25 279 270 240 462 Average Temperature 63 | . 5 72 104 63 54 Received Heat Transfer 2014 | . 138 288 . 30 1558 Effects 4 | . . 2 1 . 1 Energy Bleed 2 | . . . 1 . 1 Interference 2 | . . 2 . . . Siege Activations . | . . . . . . Robots Corrupted . | . . . . . . Combat Hostiles . | . . . . . . Parts Fried 4 | . . . . . 4 Impact Corruptions 4 | . . . . . 4 Robots Melted . | . . . . . . Combat Hostiles . | . . . . . . Parts Melted 1 | . . . . . 1 Heat Transferred 838 | . . . . . 838 Parts Sabotaged . | . . . . . . Parts Stolen . | . . . . . . Parts Stripped . | . . . . . . Power Chain Reactions . | . . . . . . Missiles Intercepted . | . . . . . . Alert | -11 -10 -10 -10 -9 -8 ------- Run | Jun Mat Min Exi Min Mat Peak Influence 799 | 5 171 65 . 75 799 Initial 29 | . 3 . . . 29 Average 134 | 4 43 8 . 12 377 Maximum Alert Level 3 | . . . . . 3 Low Security (%) 76 | 100 100 100 . 100 26 Level 1 11 | . . . . . 34 Level 2 8 | . . . . . 27 Level 3 3 | . . . . . 10 Level 4 . | . . . . . . Level 5 . | . . . . . . High Security . | . . . . . . Max Security . | . . . . . . Squads Dispatched 10 | . 3 . . . 7 Investigation 3 | . 2 . . . 1 Extermination . | . . . . . . Reinforcement 6 | . 1 . . . 5 Assault 1 | . . . . . 1 Garrison . | . . . . . . Intercept . | . . . . . . Searches Triggered . | . . . . . . Construction Impeded 1 | . . . . . 1 Haulers Reinforced . | . . . . . . Active Scanning Responses . | . . . . . . Cargo Convoy Interrupts . | . . . . . . Stealth | -11 -10 -10 -10 -9 -8 --------- Run | Jun Mat Min Exi Min Mat Distress Signals 4 | . 1 1 . . 2 Communications Jammed . | . . . . . . Distress Signals . | . . . . . . Times Spotted 104 | . 22 5 . 5 72 Peak Tracking Total 9 | . 3 2 . 3 9 Tactical Retreats 2 | . . 1 . . 1 Traps | -11 -10 -10 -10 -9 -8 ------- Run | Jun Mat Min Exi Min Mat Traps Triggered 8 | . 6 2 . . . Indirectly . | . . . . . . Trap Hack Attempts . | . . . . . . Triggered . | . . . . . . Disarmed . | . . . . . . Reprogrammed . | . . . . . . Reused . | . . . . . . Traps Extracted . | . . . . . . Installed . | . . . . . . Triggered . | . . . . . . Machines | -11 -10 -10 -10 -9 -8 ---------- Run | Jun Mat Min Exi Min Mat Machines Disabled 11 | . 1 1 . 1 8 Max in Single Turn 3 | . 1 1 . 1 3 Machines Repaired . | . . . . . . Machines Sabotaged . | . . . . . . Overloaded Fab Kills . | . . . . . . Hacking | -11 -10 -10 -10 -9 -8 --------- Run | Jun Mat Min Exi Min Mat Machines Accessed 21 | . 8 1 4 1 7 Terminals 14 | . 6 . . 1 7 Fabricators . | . . . . . . Repair Stations . | . . . . . . Recycling Units 2 | . 2 . . . . Scanalyzers . | . . . . . . Garrison Access . | . . . . . . Total Hacks 85 | . 19 1 49 1 15 Successful 57 | . 4 1 49 1 2 Failed 28 | . 15 . . . 13 Catastrophic 7 | . 4 . . . 3 Database Lockouts . | . . . . . . Manual 27 | . 13 . . . 14 Terminals 30 | . 14 . . 1 15 Fabricators . | . . . . . . Repair Stations . | . . . . . . Recycling Units 5 | . 5 . . . . Scanalyzers . | . . . . . . Garrison Access . | . . . . . . Terminal Hacks 54 | . 1 1 49 1 2 Record 50 | . . . 49 . 1 Open Door 1 | . . 1 . . . Branch Access Points 2 | . 1 . . . 1 Dispatch Records 1 | . . . . 1 . Fabricator Hacks . | . . . . . . Repair Station Hacks . | . . . . . . Recycling Unit Hacks 3 | . 3 . . . . Retrieve Matter 1 | . 1 . . . . Retrieve Components 2 | . 2 . . . . Scanalyzer . | . . . . . . Garrison Access Hacks . | . . . . . . Unauthorized Hacks . | . . . . . . Terminals . | . . . . . . Fabricators . | . . . . . . Repair Stations . | . . . . . . Recycling Units . | . . . . . . Scanalyzers . | . . . . . . Garrison Access . | . . . . . . Data Cores Recovered . | . . . . . . Used . | . . . . . . Hacking Detections 14 | . 7 . . . 7 Full Trace Events 3 | . 2 . . . 1 Feedback Events 1 | . 1 . . . . Corruption 1 | . 1 . . . . Feedback Blocked . | . . . . . . Robot Schematics Acquired . | . . . . . . Robots Built . | . . . . . . Authchips . | . . . . . . Time . | . . . . . . Total Robot Build Rating . | . . . . . . Part Schematics Acquired . | . . . . . . Parts Built . | . . . . . . Authchips . | . . . . . . Time . | . . . . . . Total Part Build Rating . | . . . . . . Parts Repaired . | . . . . . . Time . | . . . . . . Parts Recycled . | . . . . . . Recycled Matter . | . . . . . . Retrieved Matter 47 | . 47 . . . . Retrieved Components 12 | . 12 . . . . Parts Scanalyzed . | . . . . . . Part Schematics Acquired . | . . . . . . Parts Damaged . | . . . . . . Bothacking | -11 -10 -10 -10 -9 -8 ------------ Run | Jun Mat Min Exi Min Mat Used RIF Installer . | . . . . . . Robots Hacked 2 | . . . . . 2 Non-combat 1 | . . . . . 1 Combat 1 | . . . . . 1 Robot Hacks Applied 2 | . . . . . 2 parse_system 2 | . . . . . 2 Relay Couplers Released . | . . . . . . Fabnet Peak Effective % . | . . . . . . Robots Rewired 1 | . . . 1 . . Allies Hacked . | . . . . . . Hacks Repelled . | . . . . . . Allies | -11 -10 -10 -10 -9 -8 -------- Run | Jun Mat Min Exi Min Mat Total Allies 5 | . . 4 1 . . Largest Group 3 | . . 3 3 3 . Highest-Rated Group 40 | . . 40 32 32 . Highest-Rated Ally 31 | . . 31 16 16 . Total Orders . | . . . . . . Ally Attacks 7 | . . . . 7 . Total Damage 87 | . . . . 87 . Kills 1 | . . . . 1 . Allies Corrupted . | . . . . . . Allies Melted . | . . . . . . Intel | -11 -10 -10 -10 -9 -8 ------- Run | Jun Mat Min Exi Min Mat Robot Analysis Total . | . . . . . . Derelict Logs Recovered 2 | . . 1 . 1 . Drone Launches . | . . . . . . Drone Recoveries . | . . . . . . Exploration | -11 -10 -10 -10 -9 -8 ------------- Run | Jun Mat Min Exi Min Mat Turns Passed 13555 | 35 2335 3934 3200 761 3290 Spaces Moved 5202 | 22 1098 1150 1108 379 1445 Core 9 | . . . . . 9 Treads 2935 | . 989 1150 792 . 4 Legs 131 | 22 109 . . . . Wheels 2127 | . . . 316 379 1432 Hover . | . . . . . . Flight . | . . . . . . Fastest Speed 120 | 120 120 320 175 175 135 Average Speed 228 | 120 186 323 282 175 158 Slowest Speed 1650 | 120 320 325 325 175 1650 Overloaded Moves . | . . . . . . Propulsion Burnouts . | . . . . . . Robots Hopped . | . . . . . . Cave-ins Triggered 1 | . . 1 . . . Exploration Rate (%) 75 | 3 97 99 92 75 85 Regions Visited 5 Branch Regions 3 Pre-discovered Areas 2 | . . 1 1 . . Known Exits Taken 3 | . 1 1 . 1 . Unknown Exits Taken 2 | 1 . . 1 . . Scrap Searched 3 | . . 1 . 2 . Spaces Dug 18 | . 4 4 . . 10 Terrain Destroyed 212 | . 4 38 12 . 158 Melee 18 | . 4 4 . . 10 Projectile 6 | . . . . . 6 AOE 188 | . . 34 12 . 142 Terrain Rammed 4 | . . . . . 4 Walls Destroyed 4 | . . . . . 4 Machines Disabled . | . . . . . . Actions | -11 -10 -10 -10 -9 -8 --------- Run | Jun Mat Min Exi Min Mat Total 6290 | 29 1272 1274 1147 456 2112 Wait 272 | . 17 3 2 61 189 Move 5196 | 21 1097 1148 1107 378 1445 Hop . | . . . . . . Pick Up 113 | 2 33 18 4 1 55 Fast Attach 46 | . 2 4 2 1 37 Attach 46 | . 6 8 1 . 31 Detach 9 | . . . 2 . 7 Swap 67 | . 18 5 1 2 41 Drop 122 | 3 21 15 6 1 76 Fire 353 | 3 73 62 3 10 202 Melee 60 | . 5 11 17 2 25 Ram 4 | . . . . . 4 Kick . | . . . . . . Crush . | . . . . . . Escape Stasis . | . . . . . . Rewire 2 | . . . 2 . . Trap . | . . . . . . Miscellaneous . | . . . . . . Route ------- -11/Junkyard -10/Materials (discovered 5 exits: *Mat x3 / *Min / *Sub) -10/Mines (discovered 4 exits: *Mat x2 / *Exi / *Sub) -10/Exiles (discovered 2 exits: *Min x2) -9/Mines -8/Materials (discovered 2 exits: *Fac x2) History --------- Turn | Location | Event 9 | -11/Junkyard | Discovered new exit (range 3) 36 | -11/Junkyard | Entered Materials 312 | -10/Materials | Build established: Mutant 457 | -10/Materials | Discovered new exit (range 11) 459 | -10/Materials | Discovered new exit (range 8) 480 | -10/Materials | Discovered new exit (range 11) 1245 | -10/Materials | Discovered new exit (range 5) 1326 | -10/Materials | Identified exit to Mines 1554 | -10/Materials | Discovered new exit (range 3) 2371 | -10/Materials | Entered Mines 2442 | -10/Mines | Learned location of Storage (-7) 2564 | -10/Mines | A weapon hastily lodged in a ceiling crevice suddenly fell to the ground 2981 | -10/Mines | Received a Mining Laser from a helpful Derelict 3404 | -10/Mines | Met a Derelict who couldn't figure out how to use a Trap Extractor 3424 | -10/Mines | Core integrity fell below 50% 3596 | -10/Mines | Discovered new exit (range 11) 3628 | -10/Mines | Discovered new exit (range 10) 5166 | -10/Mines | Discovered new exit (range 14) 5183 | -10/Mines | Assisted by bots powering up and referring to "LRC-V3" 5522 | -10/Mines | Crushed by falling debris 5522 | -10/Mines | System corruption reached 10% 5522 | -10/Mines | Identified exit to Subcaves 5547 | -10/Mines | Identified exit to Materials 6286 | -10/Mines | Deemed a non-threat by the Exiles lab entrance 6286 | -10/Mines | Discovered new exit (range 5) 6296 | -10/Mines | Identified exit to Exiles 6305 | -10/Mines | Entered Exiles 6305 | -10/Exiles | Found Exiles lab destroyed 6305 | -10/Exiles | Accompanied by 2 allies 7284 | -10/Exiles | Learned location of Zion (-7) 8848 | -10/Exiles | Discovered new exit (range 12) 9124 | -10/Exiles | Discovered new exit (range 14) 9505 | -10/Exiles | Entered Mines 9505 | -9/Mines | Accompanied by 3 allies 9556 | -9/Mines | Met a Derelict bent on vengeance 9568 | -9/Mines | Found a damaged Exp. Sensor Array with a note attached 9587 | -9/Mines | Found Prototype Device 10115 | -9/Mines | Discovered new exit (range 7) 10121 | -9/Mines | Learned location of 1 exit from Proximity Caves 10163 | -9/Mines | Identified exit to Materials 10266 | -9/Mines | Entered Materials 10266 | -8/Materials | Evolved 4 slots: Utility x4 10483 | -8/Materials | Identified Exp. Sensor Array 10852 | -8/Materials | Lost 3 parts (1p2u) 10976 | -8/Materials | Lost 3 parts (2u1w) 10986 | -8/Materials | Discovered new exit (range 3) 10990 | -8/Materials | Identified exit to Factory 12410 | -8/Materials | Core integrity fell below 50% 12549 | -8/Materials | Discovered exit to Factory (range 4) 12781 | -8/Materials | Core integrity fell below 20% 13209 | -8/Materials | Build established: Scavenger-Mutant 13466 | -8/Materials | First assault squad dispatched 13556 | -8/Materials | Destroyed by G-47 Trooper with Particle Gun Last Messages --------------- 13496_ S-10 Pest destroyed. 13496_ Destroyed Flight Unit. 13496_ S-10 Pest destroyed. 13498_ System corrupted: Missile Launcher failed to launch. 13500_ Destroyed Lgt. Ion Engine. 13500_ S-10 Pest destroyed. 13505_ System corrupted: Matter fused (-5). 13512_ Dropped Lgt. Treads. 13524_ System corrupted: Component data lost. 13535_ C-30 ARC bursts open, deploying its payload. 13535_ G-50 Soldier unfolds itself. 13535_ L-31 Rogue unfolds itself. 13535_ G-47 Trooper unfolds itself. 13535_ I-25 Savior unfolds itself. 13537_ K-01 Serf collects debris. 13552_ Deuterium Engine destroyed. 13554_ Imp. Assault Rifle destroyed. 13554_ Wheel destroyed. 13555_ Adv. Beam Rifle severed. 13556_ Critical hit (Burn: +37). Map ----- +----------------------------------------------------+ | ####### + """ + #????????????#???????? | | #! """ ###### #????????????????????? | | # #????# #????????????????????? | | = ##########??# +????????????????????? | | ###+################??# #????? # ??????????? | | ! ### # ##??# #?????## ????????? | | = # # # ] """ + ?? ????? ??? | | ### # """"" ######## #### ? | | ### # """"" ############# ####? | | # # # "T" """"" ### = # [ ? | | ### # """ """ ### # [ *??? | | [ # # " ### + ???? | | ### ######+######## # ]????? | | ###/ ##### ####### """ ## # ????? | | ############ + # """ "T" ## # ????? | | ^ ^ # # """ "" ## # ????? | | = ^ ^ # # ## # | | """ "" !"# ? ##+#####+### ####### | | ^ """" """"" T# ??? ## ### ! ## | | """"" """"" "# ??? + | | """"" """"" # ??? # ! | | """ """ + ??? # ###!= ##### ^ ### | | # ??? # ################### ### | | ! # ??? # ################### ##? | | ############### # ??? # ###############???????? | | ######## # #@ #### """" ##???????? | | ?????? ######## #######lgg # ""T" ##???????? | | ?????? # T / "" # ##???????? | | ?????? # g T # ##???????? | | ?????? # # ##???????? | | ?? # """ """ # # ##???????? | | ??###### """ """ %####### ###### | | ?? """ """ ####### ########## | | ?? ##########+######## | | ?? ## | | ###############"T"## ^ ## | | ###############"""## ^^ ! [ ## // | | # ##???####### =***= ## / | | # ##???#########+################ ## // | | ] # ##???????## # ## ## | | == # ##???????## ! #""" """ ## ## | | # ########### #"R """ # ###+### | | # ########### ! #""" """ # | | #+### ## # # + ! | | ##+### """ # """ """ # """ # | | ==#[ """"" # """ """ # """ # ###+### | | ]+ """"" # """ """ # """ ## ## | | # """"" ########### ## ## | | ###### """ ##################### ## | | ########## ##?????????########## ## | +----------------------------------------------------+ Best States ------------- Heat Dissipation 64 Energy Generation 18 Energy Capacity 275 Matter Stores 300 Matter Capacity 300 Sight Range 16 Robot Scan Range 20 Terrain Scan Range 14 Terrain Scan Density 10 Armor Coverage 375 Weapon Cycling 15 Evasion (%) 55 Targeting Accuracy 8 Recoil Reduction 2 Offensive Hacking 11 Item Schematics ----------------- None Robot Schematics ------------------ None Fabricated ------------ Nothing Alien Tech Used ----------------- None Achievements -------------- None Challenges ------------ None Game ------ Seed SmartbombLightWand Manual? 0 Play Time 02:23:39 Cumulative 131.6 hours Start 2023.09.13 @ 09:23:12 End 2023.09.13 @ 11:57:18 Sessions 3 Manual Loads 0 Difficulty Rogue Special Mode None Game No. 88 Rogue 88 Adventurer 0 Explorer 0 Win Type - Total 3 Types 2/0/1/0/0/0/0/0/0 Lore% 47 Gallery% 46 Achievement% 45 Wizard Run 0 Options --------- ASCII 0 Keyboard 0 Movement Mouse Keybinds 0 Fullscreen 1 Font 18/SmallcapsGlow Map View 76x50 Tactical HUD 1 Map Filters NONE Filters NONE Steam X RUN: 651e64cc-fa50-40e6-b348-bd1c0a029e0a